Cogmind - Beta 9.2 @@@ ROGUE MODE // 2019.12.04 @ 12:20:42 Player: GammaGradiation Result: Destroyed by G-47 Trooper with Particle Gun Performance ------------- Evolutions (0) 0 Regions Visited (1) 200 Robots Destroyed (5) 25 Value Destroyed (108) 108 Prototype IDs (0) 0 Alien Tech Used (0) 0 Bonus (0) 0 TOTAL SCORE: 333 Bonus ------- None Cogmind --------- Core Integrity 0/250 Matter 237/300 Energy 85/100 System Corruption 0% Temperature Cool (18) Movement Core (50) Location -10/Materials Parts ------- > --- POWER (1) -------- (None) > --- PROPULSION (2) --- (None) > --- UTILITY (2) ------ Signal Interpreter Targeting Computer > --- WEAPON (2) ------- Hammer > --- INVENTORY (4) ---- Light Ion Engine Small Storage Unit Large Storage Unit Peak State ------------ > --- POWER ------------ (None) > --- PROPULSION ------- Flight Unit > --- UTILITY ---------- Targeting Computer Targeting Computer > --- WEAPON ----------- Medium Laser Light Assault Rifle > --- INVENTORY -------- Light Ion Engine Small Storage Unit EM Pulse Gun Hammer [Rating: 5] Favorites ----------- Power None Propulsion Flight Unit Flight Unit Flight Unit Utility Targeting Computer Processor Targeting Computer Weapon Light Assault Rifle Energy Gun Medium Laser Ballistic Gun Light Assault Rifle Impact Weapon Hammer Build | -11 -10 ------- Run | Scr Mat Slots Evolved . | . . Power . | . . Propulsion . | . . Utility . | . . Weapon . | . . Parts Attached 10 | 2 8 Power . | . . Engine . | . . Core . | . . Reactor . | . . Propulsion 1 | . 1 Treads . | . . Leg . | . . Wheel . | . . Hover . | . . Flight 1 | . 1 Utility 3 | . 3 Device . | . . Storage . | . . Processor 3 | . 3 Hackware . | . . Protection . | . . Artifact . | . . Weapon 6 | 2 4 Energy Gun 2 | 1 1 Energy Cannon . | . . Ballistic Gun 2 | 1 1 Ballistic Cannon . | . . Launcher . | . . Special Weapon . | . . Impact Weapon 2 | . 2 Slashing Weapon . | . . Piercing Weapon . | . . Special Melee Weapon . | . . Unidentified Prototypes . | . . Parts Lost 4 | . 4 Power . | . . Propulsion 1 | . 1 Utility . | . . Weapon 3 | . 3 Highest Loss Streak 4 | . 4 Average Slot Usage (%) 61 | . 61 Flight 10 | . 10 Processor 24 | . 24 Energy Gun 6 | . 6 Ballistic Gun 14 | . 14 Impact Weapon 5 | . 5 Naked Turns . | . . Heaviest Build 3 | 3 3 Greatest Support 4 | 3 4 Greatest Overweight (x) . | . . Average Overweight (x) . | . . Largest Inventory Capacity 4 | 4 4 Average Capacity 4 | 4 4 Most Carried 4 | 4 4 Average Carried 3 | 2 3 Final Capacity 4 | 4 4 Final Carried 4 | 4 3 Class Distribution -------------------- 100% | Mutant Dominant Class ---------------- Mutant | -10/Materials Resources | -11 -10 ----------- Run | Scr Mat Matter Collected 241 | 220 21 Remotely . | . . Salvage Created 105 | . 105 Parts 12 | . 12 Haulers Intercepted . | . . Recyclers Shooed . | . . Parts Field Recycled . | . . Retrieved Matter . | . . Parts Self-Destructed . | . . Prevented . | . . Kills | -11 -10 ------- Run | Scr Mat Combat Hostiles Destroyed 5 | . 5 Guns 5 | . 5 Classes Destroyed 2 | . 2 Swarmer 3 | . 3 Grunt 2 | . 2 Best Kill Streak 4 | . 4 Combat Bots Only 4 | . 4 Max Kills in Single Turn 1 | . 1 Gunslinging . | . . Exploded . | . . Melee . | . . Uniques/NPCs Destroyed . | . . Combat | -11 -10 -------- Run | Scr Mat Damage Taken 510 | . 510 Core 254 | . 254 Absorbed by Shields . | . . Core Remaining (%) 100 | 100 . Volleys Fired 24 | . 24 Largest 2 | . 2 Hottest 70 | . 70 Shots Fired 33 | . 33 Gun 33 | . 33 Cannon . | . . Launcher . | . . Special . | . . Kinetic 24 | . 24 Thermal 9 | . 9 Explosive . | . . Electromagnetic . | . . Robot Hit Streak 6 | . 6 Robot Miss Streak 2 | . 2 Penetration Max . | . . Secondary Targets 1 | . 1 Max Gunslinging Chain 1 | . 1 Shots Hit Robots 23 | . 23 Core Hits 10 | . 10 Critical Hits 2 | . 2 Critical Kills 1 | . 1 Critical Parts Destroyed 1 | . 1 Melee Attacks 3 | . 3 Impact 3 | . 3 Slashing . | . . Piercing . | . . Sneak Attacks . | . . Combat Hostiles . | . . Follow-up Attacks . | . . Damage Inflicted 209 | . 209 Guns 186 | . 186 Cannons . | . . Explosions . | . . Melee 23 | . 23 Ramming . | . . Kinetic 125 | . 125 Thermal 61 | . 61 Explosive . | . . Electromagnetic . | . . Impact 23 | . 23 Slashing . | . . Piercing . | . . Highest Corruption . | . . Average Corruption . | . . Corruption Purged . | . . Overload Shots . | . . Overflow Damage . | . . Projectiles . | . . Explosions . | . . Melee . | . . Knockbacks 1 | . 1 Impact 1 | . 1 Kinetic . | . . Secondary . | . . Self-Inflicted Damage . | . . Shots . | . . Rammed . | . . Targets Rammed . | . . Kicked . | . . Crushed . | . . Highest Temperature 62 | . 62 Average Temperature 27 | . 27 Received Heat Transfer 243 | . 243 Siege Activations . | . . Robots Corrupted . | . . Combat Hostiles . | . . Parts Fried . | . . Impact Corruptions . | . . Robots Melted . | . . Combat Hostiles . | . . Parts Melted . | . . Heat Transferred 185 | . 185 Parts Sabotaged . | . . Parts Stolen . | . . Parts Stripped . | . . Power Chain Reactions . | . . Missiles Intercepted . | . . Alert | -11 -10 ------- Run | Scr Mat Peak Influence 225 | . 225 Average Influence 85 | . 93 Maximum Alert Level 1 | . 1 Low Security (%) 92 | 100 91 Level 1 7 | . 8 Level 2 . | . . Level 3 . | . . Level 4 . | . . Level 5 . | . . High Security . | . . Max Security . | . . Squads Dispatched 1 | . 1 Investigation . | . . Extermination . | . . Reinforcement 1 | . 1 Assault . | . . Garrison . | . . Intercept . | . . Construction Impeded . | . . Haulers Reinforced . | . . Stealth | -11 -10 --------- Run | Scr Mat Distress Signals 1 | . 1 Communications Jammed . | . . Distress Signals . | . . Times Spotted 13 | . 13 Peak Tracking Total 8 | . 8 Tactical Retreats 2 | . 2 Traps | -11 -10 ------- Run | Scr Mat Traps Triggered . | . . Indirectly . | . . Trap Hack Attempts . | . . Triggered . | . . Disarmed . | . . Reprogrammed . | . . Reused . | . . Traps Extracted . | . . Installed . | . . Triggered . | . . Machines | -11 -10 ---------- Run | Scr Mat Machines Disabled 1 | . 1 Max in Single Turn 1 | . 1 Machines Sabotaged . | . . Garrisons Compromised . | . . Overloaded Fab Kills . | . . Fab Network Shutdowns . | . . Hacking | -11 -10 --------- Run | Scr Mat Machines Accessed 4 | . 4 Terminals 4 | . 4 Fabricators . | . . Repair Stations . | . . Recycling Units . | . . Scanalyzers . | . . Garrison Access . | . . Total Hacks 9 | . 9 Successful 2 | . 2 Failed 7 | . 7 Catastrophic 1 | . 1 Database Lockouts . | . . Manual 4 | . 4 Terminals 9 | . 9 Fabricators . | . . Repair Stations . | . . Recycling Units . | . . Scanalyzers . | . . Garrison Access . | . . Terminal Hacks 1 | . 1 Dispatch Records 1 | . 1 Fabricator Hacks . | . . Repair Station Hacks . | . . Recycling Unit Hacks . | . . Scanalyzer . | . . Garrison Access Hacks . | . . Unauthorized Hacks 2 | . 2 Terminals 1 | . 1 Operators 1 | . 1 Fabricators . | . . Repair Stations . | . . Recycling Units . | . . Scanalyzers . | . . Garrison Access . | . . Data Cores Recovered . | . . Used . | . . Hacking Detections 3 | . 3 Full Trace Events . | . . Feedback Events . | . . Feedback Blocked . | . . Robot Schematics Acquired . | . . Robots Built . | . . Matter . | . . Time . | . . Total Robot Build Rating . | . . Part Schematics Acquired . | . . Parts Built . | . . Matter . | . . Time . | . . Total Part Build Rating . | . . Parts Repaired . | . . Time . | . . Parts Recycled . | . . Recycled Matter . | . . Retrieved Matter . | . . Retrieved Components . | . . Parts Scanalyzed . | . . Part Schematics Acquired . | . . Parts Damaged . | . . Bothacking | -11 -10 ------------ Run | Scr Mat Used RIF Installer . | . . Robots Hacked . | . . Non-combat . | . . Combat . | . . Robot Hacks Applied . | . . Relay Couplers Released . | . . Robots Rewired . | . . Allies Hacked . | . . Hacks Repelled . | . . Allies | -11 -10 -------- Run | Scr Mat Total Allies . | . . Largest Group . | . . Highest-Rated Group . | . . Highest-Rated Ally . | . . Total Orders . | . . Ally Attacks . | . . Total Damage . | . . Kills . | . . Allies Corrupted . | . . Allies Melted . | . . Intel | -11 -10 ------- Run | Scr Mat Robot Analysis Total . | . . Derelict Logs Recovered . | . . Drone Launches . | . . Drone Recoveries . | . . Exploration | -11 -10 ------------- Run | Scr Mat Turns Passed 291 | 25 266 Spaces Moved 478 | 37 441 Core 60 | 37 23 Treads . | . . Legs . | . . Wheels . | . . Hover . | . . Flight 418 | . 418 Fastest Speed 40 | 50 40 Average Speed 41 | 50 40 Slowest Speed 50 | 50 50 Overloaded Moves . | . . Propulsion Burnouts . | . . Robots Hopped 3 | . 3 Cave-ins Triggered . | . . Exploration Rate (%) 38 | 3 74 Regions Visited 1 Branch Regions . Pre-discovered Areas . | . . Known Exits Taken . | . . Unknown Exits Taken 1 | 1 . Scrap Searched . | . . Spaces Dug 1 | . 1 Terrain Destroyed 1 | . 1 Melee 1 | . 1 Projectile . | . . AOE . | . . Actions | -11 -10 --------- Run | Scr Mat Total 536 | 42 494 Wait 12 | . 12 Move 471 | 36 435 Hop 3 | . 3 Pick Up 8 | 4 4 Fast Attach 7 | 2 5 Attach 1 | . 1 Detach 1 | . 1 Swap 2 | . 2 Drop 4 | . 4 Fire 24 | . 24 Melee 3 | . 3 Ram . | . . Kick . | . . Crush . | . . Escape Stasis . | . . Rewire . | . . Trap . | . . Miscellaneous . | . . Route ------- -11/Scrapyard -10/Materials (discovered 2 exits: *Mat x2) History --------- Turn | Location | Event 8 | -11/Scrapyard | Discovered new exit (range 16) 26 | -11/Scrapyard | Entered Materials 135 | -10/Materials | Discovered new exit (range 14) 164 | -10/Materials | Identified exit to Materials 182 | -10/Materials | Discovered exit to Materials (range 9) 272 | -10/Materials | Core integrity fell below 50% 287 | -10/Materials | Core integrity fell below 20% 292 | -10/Materials | Destroyed by G-47 Trooper with Particle Gun Last Messages --------------- 00194_ K-01 Serf cleans the Terminal. 00198_ W-16 Scout sends out distress signal. 00238_ G-34 Mercenary destroyed. 00243_ Flight Unit destroyed. 00244_ S-10 Pest suffers critical hit. 00244_ S-10 Pest destroyed. 00244_ Switching to secondary target: S-10 Pest. 00247_ S-10 Pest destroyed. 00256_ Acquired 10 matter. 00259_ Med. Laser destroyed. 00260_ Lgt. Assault Rifle destroyed. 00262_ Acquired 11 matter. 00263_ Acquired Lgt. Assault Rifle. 00276_ G-34 Mercenary destroyed. 00280_ G-47 Trooper suffers critical hit. 00280_ Destroyed Lgt. Nuclear Core. 00280_ R-06 Scavenger collects Flight Unit. 00284_ R-06 Scavenger collects Sml. Laser. 00286_ Electrolysis Chamber disabled. 00290_ Lgt. Assault Rifle destroyed. Map ----- +----------------------------------------------------+ | | | | | | | | | | | | | | | | | | | | | | | ?????????????????????????????????????????? | | ?????????????????????????????????????????# | | ????????????????????????????????????????? | | ????????????????????????????????????????? | | ????????????????????????????????????????# | | ?????????????????????????????????######## | | ???????########?????????????????##!! # | | ???????# #?????????????????#! < # | | ????#### #?????????????????#! # | | ????# # #?????????????????# + | | ????# # !#?????????????????#! ## | | ????# + #?????????????????##!!! ## | | ????# # #??????????????????#### ## | | ???## #####+###########???????????# # | | ???# #### #==*@! g #???????????# " # | | ???# #%"" [""" #???????????# "T / | | ???# =+!""" g"" #???????????# # | | ???# ### #%"""g""" #???????????# # | | ???######?# #* #?############ ## | | ??????????# #% #?# ## ## | | ??????????# # #?# """ """ ## ## | | ???######?# # #?# """ """ ## ## | | ???# # ###+#######?# """ """ ## ## | | ???# # #?# #???????# """ + #? | | ???# """ + ### #####???# """ ## #? | | ???# """ # #???# ####### | | ???# """ # #???# #???# | | ???# ?# == #########+#####???# " | | ???######?# == #?????# " | | ????????# = ####### " | | ????????# + | | ????????# #### " | | ????????###+#### #??# " | | ???????????????## ############ #??# " | | ????????????????# #??????????# #??# | | ????????????????# #??????????# ####+# | | ????????????????# +??????????# # | | ????????????????# #??????????# # | | ????????????????# #?########## # | +----------------------------------------------------+ Best States ------------- Heat Dissipation 25 Energy Generation 5 Energy Capacity 100 Matter Stores 300 Matter Capacity 300 Sight Range 16 Terrain Scan Density 10 Evasion (%) 62 Targeting Accuracy 10 Item Schematics ----------------- None Robot Schematics ------------------ None Fabricated ------------ Nothing Alien Tech Used ----------------- None Achievements -------------- None Challenges ------------ None Game ------ Seed UltimateControlArmor Manual? 0 Play Time 00:15:07 Cumulative 63.0 hours Start 2019.12.02 @ 21:22:34 End 2019.12.04 @ 12:20:42 Sessions 4 Manual Loads 0 Difficulty Rogue Special Mode None Game No. 49 Rogue 49 Adventurer 0 Explorer 0 Win Type - Total 0 Types 0/0/0/0/0/0/0 Lore% 49 Gallery% 48 Achievement% 38 Wizard Run 0 Options --------- ASCII 1 Keyboard 1 Movement Numpad Keybinds 0 Fullscreen 1 Font 18/SmallcapsGlow Map View 76x50 Tactical HUD 1 Map Filters NONE Filters NONE Steam 0 RUN: 7a2bbe27-4d37-4921-8bf5-a329156e229f